bitfinex/quotes_SOLUSD_20241220
["timestamp","ask_amount","ask_price","bid_price","bid_amount"]
[1734673971247,10.29523204,193.25,193.17,10.29523204]
[1734673971438,10.29523204,193.24,193.17,10.29523204]
[1734673977259,10.29523204,193.24,193.15,10.29523204]
[1734673977863,10.29523204,193.22,193.15,10.29523204]
[1734673978043,10.29523204,193.2,193.13,11.84113204]
[1734673978844,10.29523204,193.21,193.14,10.29523204]
[1734673979753,19.5877,193.26,193.13,1.5459]
[1734673979754,10.29523204,193.22,193.13,1.5459]
[1734673979942,10.29523204,193.22,193.15,10.29523204]
[1734673980144,20.0,193.23,193.13,1.5459]
[1734673980145,20.0,193.23,193.17,10.29523204]
[1734673980358,20.0,193.23,193.16,10.29523204]
[1734673980746,30.29523204,193.23,193.16,10.29523204]
[1734673981052,20.0,193.23,193.16,10.29523204]
[1734673981249,10.29523204,193.25,193.17,10.29523204]
[1734673981456,10.29523204,193.24,193.16,10.29523204]
[1734673981963,10.29523204,193.25,193.17,10.29523204]
[1734673982182,10.29523204,193.24,193.16,10.29523204]
[1734673982344,10.29523204,193.23,193.16,10.29523204]
[1734673982952,10.29523204,193.23,193.15,10.29523204]
[1734673983139,10.29523204,193.21,193.13,11.84113204]
[1734673983338,10.29523204,193.2,193.13,11.84113204]
[1734673983539,10.29523204,193.2,193.13,10.29523204]
[1734673983754,10.29523204,193.2,193.11,0.634279]
[1734673984162,10.29523204,193.18,193.11,0.634279]
[1734673984358,10.29523204,193.18,193.11,10.92951104]
[1734673984879,10.29523204,193.19,193.11,10.92951104]
[1734673985462,10.29523204,193.19,193.12,10.29523204]
[1734673987757,7.8273022,193.29,193.17,10.29523204]
[1734673988072,7.8273022,193.29,193.28,10.29523204]
[1734673988761,7.8273022,193.29,193.27,10.29523204]
[1734673989181,10.29523204,193.34,193.27,10.29523204]
[1734673989667,10.29523204,193.31,193.19,12.9402]
[1734673989964,10.29523204,193.28,193.18,20.0]
[1734673990281,10.29523204,193.28,193.21,10.29523204]
[1734673991073,10.29523204,193.28,193.21,16.08078153]
[1734673991074,16.08078153,193.28,193.21,16.08078153]
[1734673991244,16.08078153,193.29,193.21,16.08078153]
[1734673991665,16.08078153,193.28,193.21,16.08078153]
[1734673991861,16.08078153,193.27,193.2,16.08078153]
[1734673992367,16.08078153,193.28,193.21,16.08078153]
[1734673993569,16.08078153,193.25,193.18,16.08078153]
[1734673993870,16.08078153,193.22,193.15,16.08078153]
[1734673994369,16.08078153,193.23,193.16,16.08078153]
[1734673994563,16.08078153,193.22,193.15,16.08078153]
[1734673995947,16.08078153,193.19,193.11,0.634279]
[1734673996146,16.08078153,193.19,193.12,16.08078153]
[1734673996882,16.08078153,193.2,193.13,16.08078153]
[1734673998666,16.08078153,193.21,193.14,16.08078153]
[1734673999353,16.08078153,193.22,193.14,16.08078153]
[1734674000292,16.08078153,193.2,193.11,0.634279]
[1734674000595,16.08078153,193.2,193.13,16.08078153]
[1734674001858,36.08078153,193.23,193.16,16.08078153]
[1734674003498,36.08078153,193.23,193.15,16.08078153]
[1734674005687,16.08078153,193.21,193.15,16.08078153]
[1734674006549,16.08078153,193.21,193.13,16.08078153]
[1734674007096,16.08078153,193.21,193.11,0.634279]
[1734674007258,16.08078153,193.21,193.14,16.08078153]
[1734674008157,16.08078153,193.2,193.13,16.08078153]
[1734674009363,20.0,193.23,193.13,16.08078153]
[1734674009670,16.08078153,193.22,193.14,16.08078153]
[1734674010397,16.08078153,193.21,193.13,16.08078153]
[1734674012692,16.08078153,193.21,193.12,1.6447]
[1734674012865,16.08078153,193.18,193.12,1.6447]
[1734674013070,16.08078153,193.17,193.11,0.634279]
[1734674013386,6.2562,193.21,193.11,0.634279]
[1734674013387,16.08078153,193.12,193.11,0.634279]
[1734674014372,39.85766553,193.12,193.11,0.634279]
[1734674015289,39.35766553,193.12,193.11,0.634279]
[1734674016079,38.85766553,193.12,193.11,0.634279]
[1734674016271,23.776884,193.08,192.99,5.69501768]
[1734674016493,16.08078153,193.01,192.99,5.69501768]
[1734674016886,5.58881162,193.11,193.0,24.10138153]
[1734674017200,16.08078153,193.13,193.05,16.08078153]
[1734674017390,2.03896415,193.19,193.0,24.87827251]
[1734674017391,16.08078153,193.11,193.03,16.08078153]
[1734674017583,15.08078153,193.11,193.03,16.08078153]
[1734674018399,1.5284,193.16,193.0,8.0206]
[1734674018605,16.08078153,193.1,193.02,16.08078153]
[1734674019399,14.58078153,193.1,193.02,16.08078153]
[1734674019784,16.08078153,193.08,193.0,24.10138153]
[1734674020416,16.08078153,193.06,193.0,8.0206]
[1734674021600,16.08078153,193.06,193.0,1.6171]
[1734674024001,5.27641873,193.13,193.0,1.6171]
[1734674024203,16.08078153,193.07,193.0,17.69788153]
[1734674024579,16.08078153,193.11,193.02,16.08078153]
[1734674025675,16.08078153,193.13,193.05,16.08078153]
[1734674026907,16.08078153,193.12,193.05,16.08078153]
[1734674027292,16.08078153,193.12,193.04,16.08078153]
[1734674029115,16.08078153,193.1,193.02,22.31228153]
[1734674031329,16.08078153,193.12,193.02,7.00833963]
[1734674031508,16.08078153,193.15,193.08,16.08078153]
[1734674031835,16.08078153,193.17,193.08,16.08078153]
[1734674032213,16.08078153,193.17,193.09,1.5718]
[1734674032413,16.08078153,193.17,193.1,16.08078153]
[1734674032619,16.08078153,193.19,193.12,16.08078153]
[1734674032933,16.08078153,193.21,193.13,16.08078153]
[1734674033625,16.08078153,193.22,193.15,16.08078153]
[1734674036745,16.08078153,193.25,193.17,16.08078153]
[1734674037050,11.31543502,193.37,193.17,16.08078153]
[1734674037051,16.08078153,193.29,193.21,16.08078153]
[1734674037217,16.08078153,193.3,193.22,16.08078153]
[1734674037734,16.08078153,193.33,193.25,16.08078153]
[1734674037924,16.08078153,193.34,193.26,16.08078153]
[1734674038124,16.08078153,193.36,193.28,16.08078153]
[1734674038328,16.08078153,193.37,193.3,16.08078153]
[1734674038521,16.08078153,193.4,193.33,16.08078153]
[1734674038831,2.01417099,193.42,193.36,16.08078153]
[1734674039033,16.08078153,193.42,193.35,16.08078153]
[1734674039337,16.08078153,193.38,193.29,6.2119]
[1734674039645,16.08078153,193.37,193.3,16.08078153]
[1734674040413,16.08078153,193.38,193.31,16.08078153]
[1734674040711,16.08078153,193.41,193.34,16.08078153]
[1734674040914,12.92,193.5,193.38,16.08078153]
[1734674041113,3.1300515,193.49,193.31,0.77551478]
[1734674041334,3.1300515,193.49,193.29,6.2119]
[1734674041947,3.1300515,193.49,193.3,0.77577676]
[1734674042150,3.1300515,193.49,193.32,20.0]
[1734674042338,16.08078153,193.45,193.38,16.08078153]
[1734674042543,16.08078153,193.43,193.36,16.08078153]
[1734674042852,16.08078153,193.39,193.32,16.08078153]
[1734674043152,16.08078153,193.39,193.31,16.08078153]
[1734674043437,16.08078153,193.43,193.35,16.08078153]
[1734674043641,16.08078153,193.42,193.35,16.08078153]
[1734674043835,16.08078153,193.41,193.33,16.08078153]
[1734674044143,20.0,193.45,193.32,16.08078153]
[1734674044437,16.08078153,193.37,193.29,16.08078153]
[1734674044619,16.08078153,193.36,193.29,16.08078153]
[1734674044821,16.08078153,193.32,193.26,1.6508]
[1734674045022,25.72189281,193.32,193.26,1.6508]
[1734674045222,25.72189281,193.31,193.26,1.6508]
[1734674045537,25.72189281,193.3,193.23,25.72189281]
[1734674045735,25.72189281,193.29,193.22,25.72189281]
[1734674045936,25.72189281,193.28,193.21,27.31049281]
[1734674046640,25.72189281,193.3,193.22,25.72189281]
[1734674047139,25.72189281,193.3,193.21,1.5886]
[1734674047140,25.72189281,193.29,193.21,27.31049281]
[1734674048440,25.72189281,193.27,193.21,1.5886]
[1734674049947,25.72189281,193.26,193.21,1.5886]
[1734674051436,25.72189281,193.26,193.18,25.72189281]
[1734674052748,25.72189281,193.24,193.16,25.72189281]
[1734674052952,25.72189281,193.21,193.12,25.72189281]
[1734674053249,25.72189281,193.18,193.1,25.72189281]
[1734674053462,25.72189281,193.17,193.1,25.72189281]
[1734674053945,25.72189281,193.18,193.1,25.72189281]
[1734674054948,25.72189281,193.19,193.11,25.72189281]
[1734674055545,25.72189281,193.2,193.13,25.72189281]
[1734674055729,25.72189281,193.21,193.13,25.72189281]
[1734674055928,25.72189281,193.22,193.15,25.72189281]
[1734674056333,25.72189281,193.22,193.14,25.72189281]
[1734674056548,25.72189281,193.21,193.13,25.72189281]
[1734674057336,25.72189281,193.21,193.14,25.72189281]
[1734674057832,25.72189281,193.22,193.15,25.72189281]
[1734674058086,25.72189281,193.23,193.16,25.72189281]
[1734674058350,25.72189281,193.23,193.15,25.72189281]
[1734674058857,25.72189281,193.24,193.17,25.72189281]
[1734674059453,25.72189281,193.25,193.18,25.72189281]
[1734674059635,25.72189281,193.27,193.19,25.72189281]
[1734674059950,25.72189281,193.27,193.2,25.72189281]
[1734674060536,25.72189281,193.28,193.21,25.72189281]
[1734674060858,25.72189281,193.29,193.21,25.72189281]
[1734674061825,6.3913,193.34,193.21,25.72189281]
[1734674062056,25.72189281,193.27,193.2,25.72189281]
[1734674062431,25.72189281,193.26,193.19,25.72189281]
[1734674063768,25.72189281,193.26,193.18,25.72189281]
[1734674064233,25.72189281,193.25,193.18,25.72189281]
[1734674065053,16.08703513,193.25,193.18,16.08703513]
[1734674066959,16.08703513,193.27,193.19,16.08703513]
[1734674067275,16.08703513,193.27,193.2,16.08703513]
[1734674067557,16.08703513,193.27,193.19,16.08703513]
[1734674067731,16.08703513,193.26,193.19,16.08703513]
[1734674067933,16.08703513,193.25,193.16,7.9037]
[1734674068149,16.08703513,193.24,193.16,23.99073513]
[1734674068635,16.08703513,193.24,193.16,7.9037]
[1734674068955,16.08703513,193.24,193.17,16.08703513]
[1734674069331,16.08703513,193.24,193.16,23.99073513]
[1734674069562,16.08703513,193.2,193.13,16.08703513]
[1734674070249,16.08703513,193.19,193.12,17.74763513]
[1734674071156,16.08703513,193.2,193.13,16.08703513]
[1734674071335,16.08703513,193.21,193.14,16.08703513]
[1734674072162,16.08703513,193.23,193.15,16.08703513]
[1734674072347,16.08703513,193.23,193.16,16.08703513]
[1734674073372,16.08703513,193.23,193.15,16.08703513]
[1734674073738,16.08703513,193.23,193.16,16.08703513]
[1734674074432,16.08703513,193.25,193.18,16.08703513]
[1734674074961,16.08703513,193.24,193.17,16.08703513]
[1734674075861,16.08703513,193.24,193.16,16.08703513]
[1734674076863,16.08703513,193.21,193.13,16.08703513]
[1734674077070,16.08703513,193.2,193.12,17.74763513]
[1734674077251,16.08703513,193.19,193.12,1.6606]
[1734674077742,16.08703513,193.17,193.12,1.6606]
[1734674077954,16.08703513,193.15,193.08,16.08703513]
[1734674078652,16.08703513,193.14,193.07,1.5858]
[1734674078860,16.08703513,193.13,193.06,16.08703513]
[1734674080236,16.08703513,193.1,193.03,17.61283513]
[1734674080442,16.08703513,193.1,193.03,1.5258]
[1734674080641,16.08703513,193.08,193.01,16.08703513]
[1734674081062,25.78510123,193.08,193.01,25.78510123]
[1734674081255,25.78510123,193.07,193.0,25.78510123]
[1734674081970,25.78510123,193.07,192.99,31.48011891]
[1734674082465,25.78510123,193.07,192.99,5.69501768]
[1734674082771,30.0,193.06,193.0,25.78510123]
[1734674083770,25.78510123,193.04,192.99,5.69501768]
[1734674084163,38.73210123,193.1,192.99,5.69501768]
[1734674084164,30.0,193.03,192.99,5.69501768]
[1734674084472,30.0,193.03,192.99,4.69501768]
[1734674085260,30.0,193.03,193.01,25.78510123]
[1734674085571,30.0,193.03,193.0,25.78510123]
[1734674086876,30.0,193.03,193.02,25.78510123]
[1734674087877,25.78510123,193.11,193.02,25.78510123]
[1734674088106,6.174,193.14,193.02,25.78510123]
[1734674088107,25.78510123,193.12,193.05,25.78510123]
[1734674088251,25.78510123,193.13,193.06,25.78510123]
[1734674088576,25.78510123,193.12,193.05,25.78510123]
[1734674088753,25.78510123,193.12,193.04,25.78510123]
[1734674089280,25.78510123,193.11,193.04,25.78510123]
[1734674089977,25.78510123,193.12,193.05,25.78510123]
[1734674090673,25.78510123,193.11,193.04,25.78510123]
[1734674091255,25.78510123,193.13,193.06,25.78510123]
[1734674091657,25.78510123,193.13,193.05,25.78510123]
[1734674092402,24.51365203,193.13,193.05,25.78510123]
[1734674092696,24.51365203,193.13,192.99,19.66516789]
[1734674092697,25.78510123,193.08,193.01,25.78510123]
[1734674094174,23.776884,193.18,193.0,25.78510123]
[1734674094175,25.78510123,193.07,193.0,25.78510123]
[1734674094891,25.78510123,193.06,192.99,30.48011891]
[1734674095107,25.78510123,193.07,192.99,30.48011891]
[1734674096294,25.78510123,193.07,193.0,25.78510123]
[1734674097801,25.78510123,193.07,192.99,30.48011891]
[1734674098006,25.78510123,193.06,192.99,30.48011891]
[1734674098482,25.78510123,193.07,192.99,30.48011891]
[1734674099093,25.78510123,193.05,192.99,4.69501768]
[1734674099302,25.78510123,193.04,192.99,4.69501768]
[1734674100805,25.78510123,193.03,192.99,4.69501768]
[1734674100983,16.1238292,193.03,192.99,4.69501768]
[1734674101993,16.1238292,193.04,192.99,4.69501768]
[1734674102994,20.0,193.1,193.02,16.1238292]
[1734674103324,16.1238292,193.06,192.99,20.81884688]
[1734674103605,16.1238292,193.06,192.99,4.69501768]
[1734674104318,16.1238292,193.05,192.99,4.69501768]
[1734674105909,16.1238292,193.04,192.99,4.69501768]
[1734674107304,16.1238292,193.02,192.99,4.69501768]
[1734674107485,16.1238292,193.01,192.99,4.69501768]
[1734674107898,16.1238292,193.03,192.99,4.69501768]
[1734674108114,16.1238292,193.04,192.99,4.69501768]
[1734674108500,16.1238292,193.05,192.99,4.69501768]
[1734674109602,16.1238292,193.07,193.0,16.1238292]
[1734674110191,16.1238292,193.1,193.03,16.1238292]
[1734674110390,16.1238292,193.13,193.05,16.1238292]
[1734674110630,16.1238292,193.13,193.06,16.1238292]
[1734674110789,16.1238292,193.13,193.05,16.1238292]
[1734674110989,16.1238292,193.1,193.03,17.7022292]
[1734674111185,16.1238292,193.1,193.03,1.5784]
[1734674111412,16.1238292,193.09,193.03,1.5784]
[1734674111599,16.1238292,193.1,193.03,17.7022292]
[1734674111805,16.1238292,193.11,193.03,17.7022292]
[1734674111989,16.1238292,193.1,193.03,17.7022292]
[1734674112416,16.1238292,193.1,193.03,1.5784]
[1734674112795,16.1238292,193.09,193.03,1.5784]
[1734674113090,16.1238292,193.1,193.03,1.5784]
[1734674114726,16.1238292,193.09,193.03,1.5784]
[1734674114893,16.1238292,193.07,193.0,16.1238292]
[1734674115098,16.1238292,193.06,192.99,20.81884688]
[1734674115418,16.1238292,193.05,192.99,4.69501768]
[1734674117940,16.1238292,193.07,193.0,16.1238292]
[1734674119321,36.1238292,193.06,192.99,20.81884688]
[1734674119699,20.0,193.06,193.0,16.1238292]
[1734674120722,16.1238292,193.07,193.0,16.1238292]
[1734674121819,12.9474,193.09,192.99,4.69501768]
[1734674121820,16.1238292,193.04,192.99,4.69501768]
[1734674122332,16.1238292,193.03,192.99,4.69501768]
[1734674124215,16.1238292,193.01,192.99,4.69501768]
[1734674124399,16.1238292,193.03,192.99,4.69501768]
[1734674124600,16.1238292,193.01,192.99,4.69501768]
[1734674124804,16.1238292,193.0,192.99,4.69501768]
[1734674125227,12.9494,193.06,192.99,4.69501768]
[1734674125228,16.1238292,193.01,192.99,4.69501768]
[1734674125536,16.1238292,193.04,192.99,4.69501768]
[1734674126022,16.1238292,193.06,192.99,20.81884688]
[1734674126220,16.1238292,193.07,193.0,16.1238292]
[1734674127012,16.1238292,193.07,192.99,20.81884688]
[1734674127216,16.1238292,193.06,192.99,4.69501768]
[1734674127416,16.1238292,193.07,192.99,20.81884688]
[1734674127625,16.1238292,193.05,192.99,4.69501768]
[1734674127821,16.1238292,193.06,192.99,4.69501768]
[1734674130012,16.1238292,193.08,193.0,16.1238292]
[1734674130331,16.1238292,193.08,193.0,16.90078023]
[1734674130512,16.1238292,193.08,193.0,0.77695103]
[1734674130716,16.1238292,193.06,192.99,4.69501768]
[1734674131043,16.1238292,193.04,192.99,4.69501768]
[1734674131201,16.1238292,193.06,192.99,4.69501768]
[1734674131555,16.1238292,193.08,193.0,16.1238292]
[1734674131844,16.1238292,193.07,192.99,20.81884688]
[1734674132147,20.0,193.04,192.99,20.81884688]
[1734674132308,16.1238292,193.05,192.99,4.69501768]
[1734674136533,16.1238292,193.03,192.99,4.69501768]
[1734674136843,16.1238292,193.01,192.99,4.69501768]
[1734674137409,16.1238292,193.0,192.99,4.69501768]
[1734674138537,32.2476584,193.0,192.99,0.94281768]
[1734674138739,16.1238292,193.0,192.99,0.94281768]
[1734674139834,20.0,193.0,192.99,0.94281768]
[1734674140338,36.1238292,193.0,192.99,0.94281768]
[1734674140540,20.0,193.0,192.99,0.94281768]
[1734674140928,36.1238292,193.0,192.99,0.94281768]
[1734674141644,16.1238292,193.01,192.99,0.94281768]
[1734674142043,16.1238292,193.02,192.99,0.94281768]
[1734674144558,16.1238292,193.01,192.99,0.94281768]
[1734674145258,16.1238292,193.02,192.99,0.94281768]
[1734674146253,36.1238292,193.0,192.99,0.94281768]
[1734674148244,66.1238292,193.0,192.99,0.94281768]
[1734674150339,82.2476584,193.0,192.99,1.768e-05]
[1734674150539,66.1238292,193.0,192.99,1.768e-05]
[1734674151258,82.2476584,193.0,192.99,1.768e-05]
[1734674151751,20.0,192.96,192.95,1.125e-05]
[1734674151958,36.1238292,192.96,192.95,1.125e-05]
[1734674152954,66.1238292,192.96,192.95,1.125e-05]
[1734674153182,79.0798292,192.96,192.95,1.125e-05]
[1734674156870,66.1238292,192.96,192.95,1.125e-05]
[1734674157565,46.1238292,192.96,192.95,1.125e-05]
[1734674158259,30.0,192.96,192.95,1.125e-05]
[1734674161299,30.0,192.96,192.95,16.12384045]
[1734674161755,30.0,192.96,192.95,39.90072445]
[1734674161957,27.8334,192.96,192.95,41.54302445]
[1734674162497,16.1238292,193.04,192.95,41.54302445]
[1734674162672,16.1238292,193.04,192.97,16.1238292]
[1734674163090,12.948,193.08,192.96,16.1238292]
[1734674163091,16.1238292,193.03,192.96,16.1238292]
[1734674163254,16.1238292,193.02,192.95,17.76614045]
[1734674163896,16.1238292,193.03,192.96,16.1238292]
[1734674164696,16.1238292,193.07,192.99,16.1238292]
[1734674164858,16.1238292,193.07,193.0,16.1238292]
[1734674165055,16.13085901,193.12,192.95,1.64231125]
[1734674165056,16.1238292,193.02,192.95,1.64231125]
[1734674165260,16.1238292,193.01,192.95,1.64231125]
[1734674167698,16.1238292,193.02,192.95,1.64231125]
[1734674169195,16.1238292,193.02,192.95,17.76614045]
[1734674169402,16.1238292,193.02,192.95,1.64231125]
[1734674169707,16.1238292,193.0,192.95,1.64231125]
[1734674169998,16.1238292,193.0,192.95,1.125e-05]
[1734674171161,16.1238292,193.02,192.95,1.125e-05]
[1734674173701,20.0,193.03,192.95,1.125e-05]
[1734674173702,16.1238292,193.0,192.95,1.125e-05]
[1734674174395,20.0,193.03,192.96,16.1238292]
[1734674175209,20.0,193.03,192.95,1.125e-05]
[1734674175210,16.1238292,193.02,192.95,1.125e-05]
[1734674175503,16.1238292,193.0,192.95,1.125e-05]
[1734674180604,20.0,193.02,192.95,1.125e-05]
[1734674180900,16.1238292,193.01,192.95,1.125e-05]
[1734674181202,10.32143159,193.02,192.95,1.125e-05]
[1734674183391,30.32143159,193.04,192.96,10.32143159]
[1734674184008,30.32143159,193.04,192.95,10.32144284]
[1734674184413,30.32143159,193.04,192.97,10.32143159]
[1734674184616,10.32143159,193.04,192.97,10.32143159]
[1734674188785,6.5862,193.09,192.99,10.32143159]
[1734674189116,10.32143159,193.08,193.01,10.32143159]
[1734674189312,6.1001,193.13,193.02,10.32143159]
[1734674189613,10.32143159,193.12,193.04,10.32143159]
[1734674189824,10.32143159,193.13,193.05,10.32143159]
[1734674190319,10.32143159,193.12,193.05,10.32143159]
[1734674190814,10.32143159,193.13,193.05,10.32143159]
[1734674191013,10.32143159,193.1,193.03,10.32143159]
[1734674191321,10.32143159,193.11,193.04,10.32143159]
[1734674191818,10.32143159,193.1,193.03,10.32143159]
[1734674191991,10.32143159,193.08,192.99,1.5721]
[1734674192188,10.32143159,193.06,192.99,1.5721]
[1734674192420,10.32143159,193.06,192.99,11.89353159]
[1734674194017,10.32143159,193.09,193.01,10.32143159]
[1734674194220,30.32143159,193.08,193.01,10.32143159]
[1734674194609,10.32143159,193.08,193.01,10.32143159]
[1734674194924,10.32143159,193.07,193.0,10.32143159]
[1734674195295,10.32143159,193.07,192.99,11.89353159]
[1734674195608,19.13249572,193.15,193.04,10.32143159]
[1734674195814,10.32143159,193.13,193.04,10.32143159]
[1734674196118,1.5898,193.17,193.02,10.32143159]
[1734674196315,10.32143159,193.07,192.99,11.89353159]
[1734674196820,10.32143159,193.07,193.0,10.32143159]
[1734674197014,10.32143159,193.07,192.99,1.5721]
[1734674197015,16.12266806,193.04,192.95,1.54491125]
[1734674197215,16.12266806,193.0,192.95,1.54491125]
[1734674198231,16.12266806,193.01,192.95,17.66757931]
[1734674201326,16.12266806,193.01,192.95,1.54491125]
[1734674202025,16.12266806,193.01,192.95,1.125e-05]
[1734674202430,3.15832436,193.08,192.95,1.125e-05]
[1734674202431,16.12266806,192.99,192.95,1.125e-05]
[1734674207215,16.12266806,192.97,192.95,1.125e-05]
[1734674207533,16.12266806,192.96,192.95,1.125e-05]
[1734674209232,29.07866806,192.96,192.95,1.125e-05]
[1734674210236,16.12266806,192.96,192.95,1.125e-05]
[1734674210406,16.12266806,192.96,192.92,9.025e-05]
[1734674210407,21.5123,192.93,192.92,9.025e-05]
[1734674210602,20.0,192.9,192.79,16.12266806]
[1734674210807,16.12266806,192.87,192.79,16.12266806]
[1734674211513,16.12266806,192.87,192.78,1.6433]
[1734674211823,16.12266806,192.89,192.8,16.12266806]
[1734674212023,16.12266806,192.89,192.82,16.12266806]
[1734674212227,16.12266806,192.9,192.82,16.12266806]
[1734674212739,16.12266806,192.94,192.86,16.12266806]
[1734674213841,16.12266806,192.92,192.85,16.12266806]
[1734674214140,16.12266806,192.92,192.84,16.12266806]
[1734674214941,11.20982958,192.99,192.83,16.12266806]
[1734674214942,16.12266806,192.9,192.83,16.12266806]
[1734674215924,16.12266806,192.89,192.78,1.6433]
[1734674216117,16.12266806,192.89,192.81,16.12266806]
[1734674216633,16.12266806,192.88,192.8,16.12266806]
[1734674217543,16.12266806,192.89,192.81,16.12266806]
[1734674218128,16.12266806,192.87,192.81,16.12266806]
[1734674218738,20.0,192.95,192.81,16.12266806]
[1734674218939,16.12266806,192.91,192.83,16.12266806]
[1734674219721,16.12266806,192.92,192.84,16.12266806]
[1734674219922,12.9547,192.98,192.86,16.12266806]
[1734674220237,16.12266806,192.94,192.86,17.74546806]
[1734674221344,16.12266806,192.92,192.86,1.6228]
[1734674222441,16.12266806,192.91,192.86,1.6228]
[1734674222642,16.12266806,192.92,192.86,1.6228]
[1734674223045,16.12266806,192.94,192.87,16.12266806]
[1734674223281,16.12266806,192.94,192.86,18.52307521]
[1734674223453,16.12266806,192.96,192.88,16.12266806]
[1734674223833,16.12266806,192.97,192.9,16.12266806]
[1734674224025,16.12266806,192.99,192.92,16.12266806]
[1734674224541,16.12266806,192.99,192.91,16.12266806]
[1734674224943,16.12266806,193.0,192.93,16.12266806]
[1734674225253,16.12266806,193.02,192.95,16.12266806]
[1734674225631,16.12266806,193.01,192.94,17.75166806]
[1734674225863,16.12266806,192.99,192.94,1.629]
[1734674226357,16.12266806,193.01,192.94,1.629]
[1734674226849,16.12266806,193.0,192.94,1.629]
[1734674227273,32.9514,193.03,192.9,1.5786]
[1734674227572,16.12266806,192.96,192.9,1.5786]
[1734674227779,16.12266806,192.95,192.9,1.5786]
[1734674231870,16.12266806,192.97,192.9,1.5786]
[1734674232073,16.12266806,192.98,192.9,2.35592592]
[1734674232284,16.12266806,193.0,192.93,16.12266806]
[1734674232784,16.12266806,193.01,192.93,16.12266806]
[1734674233295,16.12266806,192.97,192.89,1.5855]
[1734674233482,16.12266806,192.98,192.9,16.12266806]
[1734674233848,16.12266806,192.97,192.89,17.70816806]
[1734674234080,16.12266806,193.0,192.91,16.12266806]
[1734674234659,16.12266806,192.99,192.91,16.12266806]
[1734674234855,16.12266806,192.97,192.9,16.12266806]
[1734674235264,16.12266806,192.97,192.89,17.70816806]
[1734674235559,16.12266806,192.96,192.89,1.5855]
[1734674236885,16.12266806,192.96,192.89,17.70816806]
[1734674237187,16.12266806,192.98,192.9,16.12266806]
[1734674237479,16.12266806,192.97,192.89,17.70816806]
[1734674238857,16.12266806,192.98,192.9,16.12266806]
[1734674240383,16.12266806,192.95,192.89,1.5855]
[1734674240558,16.12266806,192.94,192.89,1.5855]
[1734674240986,16.12266806,192.93,192.86,16.12266806]
[1734674241295,1.5121,192.97,192.85,1.5773]
[1734674241296,16.12266806,192.9,192.85,1.5773]
[1734674241492,16.12266806,192.9,192.83,22.69576806]
[1734674241703,16.12266806,192.89,192.81,16.12266806]
[1734674242193,16.12266806,192.9,192.83,16.12266806]
[1734674242964,16.12266806,192.91,192.84,16.12266806]
[1734674243592,16.12266806,192.9,192.83,16.12266806]
[1734674245680,16.12266806,192.91,192.84,16.12266806]
[1734674245870,16.12266806,192.93,192.86,16.12266806]
[1734674246073,16.12266806,192.95,192.87,16.12266806]
[1734674246582,16.12266806,192.94,192.87,16.12266806]
[1734674246783,16.12266806,192.94,192.85,0.77763706]
[1734674246964,16.12266806,192.94,192.87,16.12266806]
[1734674250385,16.12266806,192.91,192.84,16.12266806]
[1734674251311,16.12266806,192.9,192.83,16.12266806]
[1734674251796,16.12266806,192.92,192.84,16.12266806]
[1734674252797,16.12266806,192.91,192.84,16.12266806]
[1734674253968,16.12266806,192.9,192.83,16.12266806]
[1734674254592,16.12266806,192.91,192.84,16.12266806]
[1734674255397,16.12266806,192.91,192.82,0.77752602]
[1734674255579,16.12266806,192.91,192.83,16.12266806]
[1734674256367,16.12266806,192.89,192.82,16.12266806]
[1734674256579,16.12266806,192.89,192.81,16.12266806]
[1734674256992,16.12266806,192.88,192.81,16.12266806]
[1734674257373,16.12266806,192.87,192.8,1.5501]
[1734674260001,16.12266806,192.88,192.8,17.67276806]
[1734674260197,16.12266806,192.87,192.8,17.67276806]
[1734674260839,16.12266806,192.9,192.82,16.12266806]
[1734674261103,16.12266806,192.91,192.83,16.12266806]
[1734674261697,16.12266806,192.9,192.82,16.12266806]
[1734674261897,16.12266806,192.92,192.84,16.12266806]
[1734674262096,16.12266806,192.91,192.84,16.12266806]
[1734674262599,16.12266806,192.92,192.85,16.12266806]
[1734674263329,16.12266806,192.95,192.87,16.12266806]
[1734674263510,16.12266806,192.97,192.9,16.12266806]
[1734674263797,16.12266806,192.99,192.92,16.12266806]
[1734674264174,16.12266806,192.98,192.91,16.12266806]
[1734674264373,12.9531,193.01,192.9,16.12266806]
[1734674264608,16.12266806,192.99,192.92,16.12266806]
[1734674265312,16.12266806,192.98,192.91,16.12266806]
[1734674268141,16.12266806,192.98,192.9,16.12266806]
[1734674271040,16.12266806,192.99,192.92,16.12266806]
[1734674272159,16.12266806,193.02,192.95,16.12266806]
[1734674272956,7.6616,193.08,192.96,16.12266806]
[1734674273128,16.12266806,193.05,192.98,16.12266806]
[1734674273949,16.12266806,193.06,192.99,16.12266806]
[1734674274152,16.12266806,193.09,193.02,16.12266806]
[1734674275465,19.5875,193.13,193.04,16.12266806]
[1734674275466,16.12266806,193.11,193.04,16.12266806]
[1734674275663,16.12266806,193.13,193.06,16.12266806]
[1734674277041,16.12266806,193.11,193.04,16.12266806]
[1734674279562,16.12266806,193.1,193.04,16.12266806]